fUST/lending_fUST_20260114
["ID","MTS","AMOUNT","RATE_DAILY","PERIOD"]
[401849109,1768386638931,-183.15070958,0.00010316,2]
[401849110,1768386638950,-595.87356828,0.00010316,2]
[401849111,1768386638966,-500.0,0.00010316,2]
[401849112,1768386638982,-500.0,0.00010316,2]
[401849114,1768386638996,-500.0,0.00010316,2]
[401849117,1768386639011,-500.0,0.00010316,2]
[401849119,1768386639025,-500.0,0.00010316,2]
[401849121,1768386639040,-427.16018381,0.00010316,2]
[401849125,1768386639077,-72.83981619,0.00010316,2]
[401849127,1768386639091,-500.0,0.00010316,2]
[401849129,1768386639106,-500.0,0.00010316,2]
[401849131,1768386639120,-500.0,0.00010316,2]
[401849133,1768386639135,-500.0,0.00010316,2]
[401849134,1768386639149,-500.0,0.00010316,2]
[401849135,1768386639164,-500.0,0.00010316,2]
[401849136,1768386639177,-500.0,0.00010316,2]
[401849137,1768386639192,-500.0,0.00010316,2]
[401849138,1768386639207,-500.0,0.00010316,2]
[401849139,1768386639221,-500.0,0.00010316,2]
[401849140,1768386639235,-500.0,0.00010316,2]
[401849141,1768386639250,-500.0,0.00010316,2]
[401849142,1768386639264,-50000.0,0.00010318,2]
[401849143,1768386639278,-404.60559431,0.00010319,2]
[401849144,1768386639292,-38071.3369758,0.0001032,2]
[401849145,1768386639307,-300.0,0.00010525,2]
[401849146,1768386639323,-300.0,0.00010525,2]
[401849147,1768386639338,-300.0,0.00010525,2]
[401849148,1768386639352,-300.0,0.00010525,2]
[401849149,1768386639367,-300.0,0.00010525,2]
[401849150,1768386639380,-300.0,0.00010525,2]
[401849151,1768386639397,-300.0,0.00010525,2]
[401849152,1768386639412,-300.0,0.00010525,2]
[401849153,1768386639426,-300.0,0.00010525,2]
[401849154,1768386639440,-300.0,0.00010525,2]
[401849155,1768386639454,-300.0,0.00010525,2]
[401849156,1768386639470,-300.0,0.00010525,2]
[401849157,1768386639484,-300.0,0.00010525,2]
[401849158,1768386639498,-300.0,0.00010525,2]
[401849159,1768386639512,-300.0,0.00010525,2]
[401849160,1768386639527,-600.0,0.00010525,2]
[401849161,1768386639539,-300.613652,0.00010757,2]
[401849162,1768386639548,-1071.1817926,0.00010861,2]
[401849163,1768386639558,-999.0,0.00010959,2]
[401849164,1768386639567,-1151.444335,0.00011061,2]
[401849165,1768386639732,-238.905,0.00011299,2]
[401849166,1768386639742,-178.24053578,0.00011299,2]
[401849167,1768386639751,-720.0,0.00011577,2]
[401849168,1768386639760,-311.08837194,0.00011991,2]
[401849169,1768386639771,-1500.0,0.00012,2]
[401849170,1768386639780,-912.73435021,0.00012009,2]
[401849171,1768386639789,-1205.33216693,0.00012059,2]
[401849172,1768386639799,-151.0,0.000122,2]
[401849173,1768386639810,-151.0,0.000122,2]
[401849174,1768386639821,-151.0,0.000122,2]
[401849175,1768386639831,-151.0,0.000122,2]
[401849176,1768386639841,-151.0,0.000122,2]
[401849177,1768386639852,-151.0,0.000122,2]
[401849178,1768386639863,-168.3888056,0.00012222,2]
[401849179,1768386639873,-174.61919141,0.00012222,2]
[401849180,1768386639882,-181.08010149,0.00012222,2]
[401849181,1768386639891,-187.78006525,0.00012222,2]
[401849182,1768386639900,-194.72792766,0.00012222,2]
[401849183,1768386639910,-514.8407087,0.00012222,2]
[401849184,1768386639920,-201.93286099,0.00012222,2]
[401849185,1768386639929,-209.40437684,0.00012222,2]
[401849186,1768386639938,-217.15233878,0.00012222,2]
[401849187,1768386639947,-225.18697532,0.00012222,2]
[401849188,1768386639957,-233.51889341,0.00012222,2]
[401849189,1768386639967,-242.15909246,0.00012222,2]
[401849190,1768386639976,-251.11897888,0.00012222,2]
[401849191,1768386639986,-260.4103811,0.00012222,2]
[401849192,1768386639995,-270.0455652,0.00012222,2]
[401849193,1768386640006,-280.03725112,0.00012222,2]
[401849194,1768386640016,-290.39862941,0.00012222,2]
[401849195,1768386640026,-301.1433787,0.00012222,2]
[401849196,1768386640035,-1000000.0,0.00012229,2]
[401849197,1768386640044,-491.92411263,0.0001231,2]
[401849198,1768386640054,-714.67422016,0.00012329,2]
[401849199,1768386640063,-714.67422016,0.00012329,2]
[401849200,1768386640072,-714.67422016,0.00012329,2]
[401849201,1768386640081,-714.67422016,0.00012329,2]
[401849202,1768386640090,-714.67422016,0.00012329,2]
[401849203,1768386640100,-714.67422016,0.00012329,2]
[401849204,1768386640110,-714.67422016,0.00012329,2]
[401849205,1768386640119,-714.67422016,0.00012329,2]
[401849206,1768386640128,-714.67422016,0.00012329,2]
[401849207,1768386640138,-714.67422016,0.00012329,2]
[401849208,1768386640148,-714.67422016,0.00012329,2]
[401849209,1768386640158,-714.67422016,0.00012329,2]
[401849210,1768386640167,-714.67422016,0.00012329,2]
[401849211,1768386640177,-714.67422016,0.00012329,2]
[401849212,1768386640186,-714.67422016,0.00012329,2]
[401849213,1768386640196,-714.67422016,0.00012329,2]
[401849214,1768386640206,-714.67422016,0.00012329,2]
[401849215,1768386640215,-714.67422016,0.00012329,2]
[401849216,1768386640225,-714.67422016,0.00012329,2]
[401849217,1768386640234,-714.67422016,0.00012329,2]
[401849218,1768386640244,-714.67422016,0.00012329,2]
[401849219,1768386640254,-714.67422016,0.00012329,2]
[401849220,1768386640263,-714.67422016,0.00012329,2]
[401849221,1768386640273,-714.67422016,0.00012329,2]
[401849222,1768386640282,-714.67422016,0.00012329,2]
[401849223,1768386640292,-714.67422016,0.00012329,2]
[401849224,1768386640302,-714.67422016,0.00012329,2]
[401849225,1768386640311,-714.67422016,0.00012329,2]
[401849228,1768386640320,-714.67422016,0.00012329,2]
[401849229,1768386640330,-714.67422016,0.00012329,2]
[401849232,1768386640340,-714.67422016,0.00012329,2]
[401849235,1768386640349,-714.67422016,0.00012329,2]
[401849237,1768386640359,-714.67422016,0.00012329,2]
[401849239,1768386640369,-714.67422016,0.00012329,2]
[401849240,1768386640379,-714.67422016,0.00012329,2]
[401849241,1768386640389,-714.67422016,0.00012329,2]
[401849242,1768386640401,-714.67422016,0.00012329,2]
[401849243,1768386640410,-714.67422016,0.00012329,2]
[401849244,1768386640419,-714.67422016,0.00012329,2]
[401849245,1768386640428,-714.67422016,0.00012329,2]
[401849246,1768386640438,-714.67422016,0.00012329,2]
[401849247,1768386640447,-714.67422016,0.00012329,2]
[401849248,1768386640456,-714.67422016,0.00012329,2]
[401849249,1768386640466,-714.67422016,0.00012329,2]
[401849250,1768386640476,-714.67422016,0.00012329,2]
[401849251,1768386640485,-714.67422016,0.00012329,2]
[401849252,1768386640494,-714.67422016,0.00012329,2]
[401849253,1768386640504,-714.67422016,0.00012329,2]
[401849254,1768386640514,-714.67422016,0.00012329,2]
[401849255,1768386640524,-714.67422016,0.00012329,2]
[401849256,1768386640534,-714.67422016,0.00012329,2]
[401849257,1768386640543,-714.67422016,0.00012329,2]
[401849258,1768386640553,-714.67422016,0.00012329,2]
[401849259,1768386640564,-714.67422016,0.00012329,2]
[401849260,1768386640575,-714.67422016,0.00012329,2]
[401849261,1768386640584,-714.67422016,0.00012329,2]
[401849262,1768386640594,-714.67422016,0.00012329,2]
[401849263,1768386640603,-714.67422016,0.00012329,2]
[401849264,1768386640613,-714.67422016,0.00012329,2]
[401849265,1768386640622,-714.67422016,0.00012329,2]
[401849266,1768386640631,-714.67422016,0.00012329,2]
[401849267,1768386640641,-714.67422016,0.00012329,2]
[401849268,1768386640652,-714.67422016,0.00012329,2]
[401849269,1768386640662,-714.67422016,0.00012329,2]
[401849270,1768386640671,-714.67422016,0.00012329,2]
[401849271,1768386640681,-714.67422016,0.00012329,2]
[401849273,1768386640690,-1244.35348777,0.00012351,2]
[401849274,1768386640699,-4605.77734,0.00012437,2]
[401849276,1768386640708,-3522.5668425,0.000125,2]
[401849278,1768386640717,-2799.79534748,0.00012712,2]
[401849280,1768386640727,-864.0,0.00012735,2]
[401849282,1768386640736,-200.0,0.00012861,2]
[401849284,1768386640746,-3650.93740083,0.00012913,2]
[401849286,1768386640755,-1500.0,0.00012999,2]
[401849288,1768386640764,-246.05048425,0.00013,3]
[401849290,1768386640773,-4977.41395107,0.00013072,2]
[401849291,1768386640782,-500.0,0.00013273,2]
[401849293,1768386640791,-500.0,0.00013273,2]
[401849295,1768386640800,-159.65287791,0.00013273,2]
[401849297,1768386640809,-500.0,0.00013273,2]
[401849299,1768386640818,-167.63409657,0.00013273,2]
[401849301,1768386640827,-500.0,0.00013273,2]
[401849303,1768386640836,-547.00656757,0.00013273,2]
[401849305,1768386640846,-7777.20929855,0.00013432,2]
[401849307,1768386640856,-250.0,0.00013612,2]
[401849309,1768386640865,-500.0,0.00013698,2]
[401849311,1768386640873,-500.0,0.00013698,2]
[401849313,1768386640883,-500.0,0.00013698,2]
[401849315,1768386640892,-500.0,0.00013698,2]
[401849317,1768386640902,-500.0,0.00013698,2]
[401849319,1768386640911,-500.0,0.00013698,2]
[401849321,1768386640920,-500.0,0.00013698,2]
[401849322,1768386640929,-500.0,0.00013698,2]
[401849324,1768386640938,-500.0,0.00013698,2]
[401849326,1768386640947,-500.0,0.00013698,2]
[401849328,1768386640956,-500.0,0.00013698,2]
[401849330,1768386640965,-500.0,0.00013698,2]
[401849332,1768386640975,-500.0,0.00013698,2]
[401849334,1768386640984,-500.0,0.00013698,2]
[401849336,1768386640993,-500.0,0.00013698,2]
[401849338,1768386641002,-500.0,0.00013698,2]
[401849340,1768386641012,-500.0,0.00013698,2]
[401849342,1768386641021,-500.0,0.00013698,2]
[401849344,1768386641030,-500.0,0.00013698,2]
[401849346,1768386641039,-500.0,0.00013698,2]
[401849348,1768386641048,-500.0,0.00013698,2]
[401849350,1768386641057,-500.0,0.00013698,2]
[401849352,1768386641066,-500.0,0.00013698,2]
[401849353,1768386641075,-181.98825894,0.00013698,2]
[401849354,1768386641084,-1265.06,0.00013698,2]
[401849355,1768386641093,-1265.06,0.00013698,2]
[401849356,1768386641102,-1265.06,0.00013698,2]
[401849357,1768386641110,-1265.06,0.00013698,2]
[401849358,1768386641119,-500.0,0.00013698,2]
[401849359,1768386641128,-500.0,0.00013698,2]
[401849360,1768386641136,-500.0,0.00013698,2]
[401849361,1768386641145,-500.0,0.00013698,2]
[401849363,1768386641155,-550.39437847,0.00013698,2]
[401849365,1768386641163,-500.0,0.00013698,2]
[401849366,1768386641172,-559.52204836,0.00013698,2]
[401849368,1768386641182,-1000.0,0.00013699,2]
[401849370,1768386641191,-500.0,0.00013699,2]
[401849372,1768386641200,-489.04509742,0.00013699,2]
[401849374,1768386641210,-500.0,0.00013699,2]
[401849376,1768386641219,-500.70727162,0.00013699,2]
[401849378,1768386641229,-500.0,0.00013699,2]
[401849380,1768386641237,-500.0,0.00013699,2]
[401849382,1768386641246,-500.0,0.00013699,2]
[401849384,1768386641255,-303.32749226,0.00013699,2]
[401849386,1768386641265,-11199.18138991,0.00013793,2]
[401849388,1768386641276,-8214.60915188,0.00013816,2]
[401849390,1768386641285,-574.08865466,0.00013821,2]
[401849392,1768386641296,-1000.0,0.00013821,2]
[401849394,1768386641305,-1000.0,0.00013821,2]
[401849396,1768386641315,-1015.29551893,0.00013821,2]
[401849398,1768386641324,-1500.0,0.00014,2]
[401849400,1768386641334,-1000.0,0.00014009,2]
[401849402,1768386641343,-1000.0,0.00014247,2]
[401849404,1768386641352,-1000.0,0.00014247,2]
[401849406,1768386641361,-1000.0,0.00014247,2]
[401849408,1768386641370,-1000.0,0.00014247,2]
[401849410,1768386641379,-500.30863166,0.00014247,2]
[401849412,1768386641390,-566.96338405,0.0001431,2]
[401849414,1768386641400,-1500.0,0.00014368,2]
[401849416,1768386641409,-1182.64469627,0.00014368,2]
[401849418,1768386641419,-5000.0,0.0001451,2]
[401849420,1768386641430,-100000.0,0.0001459,2]
[401849422,1768386641439,-1000.0,0.00014795,2]
[401849424,1768386641449,-1500.0,0.00014795,2]
[401849426,1768386641460,-364.52541442,0.00014795,2]
[401849428,1768386641470,-716.4794408,0.00014795,2]
[401849430,1768386641480,-1211.75757412,0.000149,2]
[401849432,1768386641491,-595.01188659,0.000149,2]
[401849434,1768386641501,-198.73989319,0.00014916,2]
[401849436,1768386641510,-1500.89259962,0.00015,2]
[401849438,1768386641519,-1019.00256747,0.00015,2]
[401849440,1768386641529,-35775.62597585,0.00015,2]
[401849442,1768386641538,-1372.43724231,0.00015,3]
[401849452,1768386641631,-151.00724332,0.00015,2]
[401849455,1768386641646,-8932.61499355,0.00015,7]
[401849457,1768386641656,-846.224737,0.00015068,2]
[401849459,1768386641665,-235.30085754,0.00015342,2]
[401849461,1768386641674,-1000.0,0.00015409,2]
[401849463,1768386641683,-244.0,0.00015409,2]
[401849465,1768386641693,-215.88592206,0.00016,2]
[401849467,1768386641702,-642.00265547,0.0001631,2]
[401849469,1768386641711,-323.9,0.00016438,2]
[401849471,1768386641719,-500.0,0.00016438,2]
[401849473,1768386641728,-507.1057371,0.00016438,2]
[401849475,1768386641737,-500.0,0.00016438,2]
[401849477,1768386641747,-500.0,0.00016438,2]
[401849479,1768386641756,-200.0,0.00016438,2]
[401849480,1768386641765,-1000.0,0.0001695,2]
[401849482,1768386641774,-492.0,0.0001695,2]
[401849484,1768386641783,-89611.92500565,0.00017,2]
[401849486,1768386641791,-1041.66666667,0.00017003,2]
[401849488,1768386641800,-5000.0,0.00017412,2]
[401849490,1768386641809,-400.0,0.00017534,2]
[401849492,1768386641818,-2137.48177052,0.000176,2]
[401849494,1768386641827,-24406.8,0.000178,3]
[401849496,1768386641836,-323.9,0.00017898,2]
[401849498,1768386641845,-1265.06,0.00018,2]
[401849500,1768386641854,-150512.98381193,0.00018,2]
[401849502,1768386641863,-39769.91253842,0.00018,5]
[401849504,1768386641872,-717.04192688,0.0001831,2]
[401849506,1768386641883,-846.224737,0.00018493,2]
[401849508,1768386641892,-600.0,0.0001863,2]
[401849510,1768386641902,-1000.0,0.00018645,2]
[401849512,1768386641911,-791.0,0.00018645,2]
[401849514,1768386641921,-5000.0,0.00018863,2]
[401849516,1768386641930,-303.10001603,0.000189,2]
[401849518,1768386641939,-719.46252085,0.000189,5]
[401849520,1768386641950,-2603.49,0.00019,2]
[401849522,1768386641959,-17969.48957745,0.00019,2]
[401849524,1768386641968,-303.10001603,0.00019089,2]
[401849526,1768386641978,-330.42,0.000191,7]
[401849528,1768386641987,-500.99801519,0.00019205,5]
[401849530,1768386641996,-303.10001603,0.00019278,2]
[401849532,1768386642005,-32272.36,0.000193,2]
[401849534,1768386642014,-167.77,0.000193,2]
[401849536,1768386642023,-253.17,0.000193,2]
[401849538,1768386642032,-253.14,0.000193,2]
[401849540,1768386642041,-4120.47,0.000193,2]
[401849542,1768386642050,-323.9,0.00019357,2]
[401849544,1768386642059,-303.10001603,0.00019467,2]
[401849546,1768386642069,-303.10001603,0.00019656,2]
[401849548,1768386642078,-401.4141805,0.00019726,2]
[401849550,1768386642087,-250.0,0.00019726,2]
[401849552,1768386642096,-197.37998696,0.0001973,2]
[401849554,1768386642106,-454.65002405,0.00019845,4]
[401849556,1768386642115,-151.55000802,0.0002,2]
[401849558,1768386642124,-668.88471487,0.0002,2]
[401849560,1768386642133,-14703.49659754,0.0002,2]
[401849562,1768386642142,-371.66132516,0.0002,2]
[401849564,1768386642152,-200181.45649297,0.0002,2]
[401849566,1768386642161,-804.32909815,0.0002,2]
[401849568,1768386642169,-163524.2208646,0.0002,7]
[401849570,1768386642178,-77401.68985457,0.0002,2]
[401849571,1768386642187,-23000.0,0.0002,2]
[401849573,1768386642196,-82346.01286359,0.0002,7]
[401849575,1768386642206,-202.7514447,0.0002,2]
[401849577,1768386642215,-504.32904356,0.0002,2]
[401849579,1768386642223,-1671.0,0.0002,10]
[401849581,1768386642232,-182.95072115,0.0002,2]
[401849583,1768386642241,-2000.0,0.0002,7]
[401849585,1768386642252,-454.65002405,0.00020034,4]
[401849587,1768386642261,-503.71435101,0.0002013,2]
[401849589,1768386642271,-1000.0,0.000202,2]
[401849591,1768386642280,-1000.0,0.000202,2]
[401849594,1768386642290,-1000.0,0.000202,2]
[401849595,1768386642299,-1000.0,0.000202,2]
[401849597,1768386642309,-1000.0,0.000202,2]
[401849599,1768386642318,-1000.0,0.000202,2]
[401849601,1768386642327,-1000.0,0.000202,2]
[401849603,1768386642337,-1000.0,0.000202,2]
[401849605,1768386642347,-1000.0,0.000202,2]
[401849607,1768386642356,-1000.0,0.000202,2]
[401849609,1768386642365,-454.65002405,0.00020223,4]
[401849611,1768386642374,-3524.58645943,0.00020223,4]
[401849613,1768386642383,-350.0,0.00020274,2]
[401849615,1768386642393,-792.0811983,0.0002031,2]
[401849617,1768386642406,-454.65002405,0.00020412,4]
[401849619,1768386642415,-1000.0,0.0002051,2]
[401849621,1768386642424,-1000.0,0.0002051,2]
[401849623,1768386642432,-32272.36,0.000206,2]
[401849625,1768386642442,-253.17,0.000206,2]
[401849627,1768386642452,-253.14,0.000206,2]
[401849629,1768386642461,-4120.47,0.000206,2]
[401849631,1768386642472,-152.49512259,0.00020601,4]
[401849633,1768386642481,-1389.51235473,0.0002061,2]
[401849635,1768386642490,-24406.75,0.000207,3]
[401849637,1768386642499,-606.0,0.00020768,2]
[401849640,1768386642520,-606.0,0.0002077,2]
[401849642,1768386642530,-606.0,0.00020774,2]
[401849644,1768386642539,-323.9,0.00020817,2]
[401849646,1768386642549,-450.0,0.00020822,2]
[401849648,1768386642559,-606.0,0.00020824,2]
[401849650,1768386642569,-606.0,0.00020846,2]
[401849652,1768386642579,-256.51440562,0.000209,2]
[401849654,1768386642589,-277.38884084,0.00021,2]
[401849656,1768386642599,-50000.0,0.00021,2]
[401849658,1768386642608,-2000.0,0.00021,7]
[401849660,1768386642618,-587.44774324,0.00021045,12]
[401849662,1768386642628,-606.0,0.00021193,2]
[401849664,1768386642637,-606.0,0.00021309,2]
[401849666,1768386642647,-550.0,0.0002137,2]
[401849668,1768386642657,-606.0,0.00021379,2]
[401849670,1768386642666,-606.0,0.00021394,2]
[401849672,1768386642675,-606.0,0.00021466,2]
[401849674,1768386642685,-1040.0176033,0.000215,2]
[401849676,1768386642694,-12864.48059022,0.000215,2]
[401849678,1768386642704,-606.0,0.00021514,2]
[401849680,1768386642713,-606.0,0.00021654,2]
[401849682,1768386642722,-1202.66173204,0.00021671,7]
[401849684,1768386642731,-444.06340152,0.00021688,7]
[401849686,1768386642741,-322.0,0.00021704,2]
[401849688,1768386642750,-606.0,0.00021721,2]
[401849690,1768386642759,-606.0,0.00021826,2]
[401849692,1768386642768,-606.0,0.00021853,2]
[401849694,1768386642777,-587.44774324,0.00021868,14]
[401849696,1768386642787,-606.0,0.00021892,2]
[401849698,1768386642796,-606.0,0.00021897,2]
[401849700,1768386642806,-1265.06,0.00021917,2]
[401849702,1768386642815,-1265.06,0.00021917,2]
[401849704,1768386642824,-1265.06,0.00021917,2]
[401849706,1768386642833,-846.224737,0.00021918,2]
[401849708,1768386642843,-151.0,0.00021918,2]
[401849710,1768386642852,-151.0,0.00021918,2]
[401849712,1768386642861,-151.0,0.00021918,2]
[401849714,1768386642870,-151.0,0.00021918,2]
[401849716,1768386642880,-151.0,0.00021918,2]
[401849718,1768386642889,-169.388304,0.00021918,2]
[401849720,1768386642899,-151.0,0.00021918,2]
[401849722,1768386642908,-151.0,0.00021918,2]
[401849724,1768386642918,-151.0,0.00021918,2]
[401849726,1768386642927,-151.0,0.00021918,2]
[401849728,1768386642937,-151.0,0.00021918,2]
[401849730,1768386642947,-151.0,0.00021918,2]
[401849732,1768386642956,-2297.615063,0.00021918,2]
[401849734,1768386642965,-2297.615063,0.00021918,2]
[401849736,1768386642974,-151.0,0.00021918,2]
[401849738,1768386642983,-2297.615063,0.00021918,2]
[401849740,1768386642993,-2297.615063,0.00021918,2]
[401849742,1768386643002,-151.0,0.00021918,2]
[401849744,1768386643011,-151.0,0.00021918,2]
[401849746,1768386643021,-151.0,0.00021918,2]
[401849748,1768386643031,-839.619726,0.00021918,2]
[401849750,1768386643040,-839.619726,0.00021918,2]
[401849752,1768386643050,-839.619726,0.00021918,2]
[401849754,1768386643059,-151.0,0.00021918,2]
[401849756,1768386643068,-839.619726,0.00021918,2]
[401849758,1768386643077,-151.0,0.00021918,2]
[401849760,1768386643087,-151.0,0.00021918,2]
[401849762,1768386643096,-151.0,0.00021918,2]
[401849764,1768386643106,-285.163634,0.00021918,2]
[401849766,1768386643115,-151.0,0.00021918,2]
[401849768,1768386643124,-650.0,0.00021918,2]
[401849770,1768386643133,-408.0,0.00021949,2]
[401849772,1768386643143,-568.82796279,0.0002196,10]
[401849774,1768386643152,-2222.24,0.00022,7]
[401849776,1768386643161,-32272.36,0.00022,2]
[401849778,1768386643170,-167.77,0.00022,7]
[401849780,1768386643179,-2000.0,0.00022,7]
[401849782,1768386643191,-253.17,0.00022,7]
[401849784,1768386643200,-253.14,0.00022,7]
[401849786,1768386643209,-4120.47,0.00022,14]
[401849788,1768386643219,-606.0,0.00022098,2]
[401849792,1768386643228,-525.0,0.00022151,2]
[401849794,1768386643238,-606.0,0.00022253,2]
[401849797,1768386643247,-323.9,0.00022277,2]
[401849800,1768386643257,-867.12046972,0.0002231,2]
[401849803,1768386643267,-606.0,0.00022324,2]
[401849806,1768386643276,-606.0,0.00022333,2]
[401849808,1768386643285,-606.0,0.00022384,2]
[401849810,1768386643294,-606.0,0.00022455,2]
[401849823,1768386643432,-200.0,0.00022466,2]
[401849825,1768386643444,-750.0,0.00022466,2]
[401849827,1768386643453,-1033.75044732,0.000225,2]
[401849829,1768386643466,-1000.0,0.00022561,10]
[401849831,1768386643475,-1000.0,0.00022561,10]
[401849833,1768386643485,-579.0,0.00022561,10]
[401849835,1768386643495,-606.0,0.00022595,2]
[401849837,1768386643504,-587.44774324,0.0002269,15]
[401849839,1768386643514,-606.0,0.00022731,2]
[401849841,1768386643525,-2000.0,0.00023,7]
[401849843,1768386643533,-1041.66666667,0.00023,3]
[401849845,1768386643542,-250.0,0.00023014,2]
[401849847,1768386643553,-850.0,0.00023014,2]
[401849849,1768386643562,-500.0,0.00023169,2]
[401849851,1768386643571,-728.0,0.000232,3]
[401849853,1768386643581,-700.0,0.0002323,2]
[401849855,1768386643590,-700.0,0.0002328,2]
[401849856,1768386643600,-500.0,0.00023296,2]
[401849858,1768386643611,-2222.24,0.000233,7]
[401849861,1768386643621,-500.0,0.00023327,2]
[401849863,1768386643631,-700.0,0.00023328,2]
[401849864,1768386643640,-253.17,0.000234,7]
[401849866,1768386643651,-253.14,0.000234,7]
[401849868,1768386643660,-4120.47,0.000234,14]
[401849870,1768386643669,-700.0,0.00023466,2]
[401849872,1768386643679,-32272.36,0.000235,2]
[401849874,1768386643689,-587.44774324,0.00023512,16]
[401849876,1768386643699,-210.92385342,0.00023562,2]
[401849878,1768386643708,-950.0,0.00023562,2]
[401849880,1768386643717,-500.0,0.00023618,2]
[401849882,1768386643726,-700.0,0.00023635,2]
[401849884,1768386643735,-1367.0,0.00023682,2]
[401849886,1768386643744,-629.0,0.00023682,2]
[401849888,1768386643753,-2147.0,0.00023682,2]
[401849890,1768386643762,-417.0,0.00023682,2]
[401849892,1768386643770,-417.0,0.00023682,2]
[401849894,1768386643779,-715.0,0.00023682,2]
[401849896,1768386643788,-197.967,0.00023682,2]
[401849898,1768386643796,-323.9,0.00023736,2]
[401849900,1768386643805,-500.0,0.00023757,2]
[401849902,1768386643814,-500.0,0.00023787,2]
[401849904,1768386643823,-700.0,0.00023789,2]
[401849905,1768386643833,-700.0,0.00023833,2]
[401849907,1768386643841,-700.0,0.00023854,2]
[401849909,1768386643850,-700.0,0.00023885,2]
[401849911,1768386643859,-700.0,0.00023895,2]
[401849913,1768386643868,-700.0,0.00023949,2]
[401849915,1768386643877,-1265.06,0.00023999,2]
[401849917,1768386643886,-28967.02373672,0.00024,2]
[401849919,1768386643895,-1931.32974169,0.00024,60]
[401849921,1768386643904,-1736.447596,0.00024,2]
[401849923,1768386643913,-465.90719096,0.00024,2]
[401849925,1768386643922,-1041.66666667,0.00024,7]
[401849927,1768386643933,-1024.9030344,0.00024,2]
[401849929,1768386643941,-2000.0,0.00024,7]
[401849931,1768386643950,-1776.25360607,0.00024036,7]
[401849933,1768386643960,-500.0,0.00024051,2]
[401849935,1768386643969,-500.0,0.00024082,2]
[401849937,1768386643978,-1050.0,0.0002411,2]
[401849939,1768386643987,-511930.29645519,0.00024142,2]
[401849941,1768386643996,-151.0,0.00024142,2]
[401849943,1768386644006,-151.0,0.00024142,2]
[401849945,1768386644015,-151.0,0.00024142,2]
[401849947,1768386644024,-151.0,0.00024142,2]
[401849949,1768386644034,-151.0,0.00024142,2]
[401849951,1768386644043,-151.0,0.00024142,2]
[401849953,1768386644052,-225.938304,0.00024142,2]
[401849955,1768386644061,-151.0,0.00024142,2]
[401849957,1768386644069,-171.876779,0.00024142,2]
[401849959,1768386644078,-151.0,0.00024142,2]
[401849961,1768386644087,-240.635546,0.00024142,2]
[401849963,1768386644096,-2297.615063,0.00024142,2]
[401849965,1768386644105,-2297.615063,0.00024142,2]
[401849967,1768386644115,-257.762103,0.00024142,2]
[401849969,1768386644124,-2297.615063,0.00024142,2]
[401849971,1768386644133,-2297.615063,0.00024142,2]
[401849973,1768386644142,-151.0,0.00024142,2]
[401849975,1768386644154,-151.0,0.00024142,2]
[401849977,1768386644164,-285.638493,0.00024142,2]
[401849979,1768386644172,-839.619726,0.00024142,2]
[401849981,1768386644181,-839.619726,0.00024142,2]
[401849983,1768386644192,-839.619726,0.00024142,2]
[401849985,1768386644202,-151.0,0.00024142,2]
[401849987,1768386644211,-151.0,0.00024142,2]
[401849989,1768386644220,-839.619726,0.00024142,2]
[401849991,1768386644229,-151.0,0.00024142,2]
[401849993,1768386644239,-151.0,0.00024142,2]
[401849995,1768386644248,-151.0,0.00024142,2]